Cogmind - Beta 13 @@@ ROGUE MODE // 2024.03.23 @ 21:04:52 Player: f_ Result: Destroyed by DN-4HH(R) with Subdweller Shrapnel Launcher Performance ------------- Evolutions (0) 0 Regions Visited (3) 600 Robots Destroyed (20) 100 Value Destroyed (365) 365 Prototype IDs (0) 0 Alien Tech Used (0) 0 Bonus (0) 0 TOTAL SCORE: 1065 Bonus ------- None Cogmind --------- Core Integrity 0/250 Matter 263/300 Energy 100/100 System Corruption 12% Temperature Cool (0) Movement Core (250) Ox4 Location -10/Subcaves Parts ------- > --- POWER (1) -------- (None) > --- PROPULSION (2) --- (None) > --- UTILITY (2) ------ Medium Storage Unit > --- WEAPON (2) ------- Maul > --- INVENTORY (10) --- Light Ion Engine Armored Wheel Core Shielding Medium Laser Autogun Grenade Launcher Datajack Peak State ------------ > --- POWER ------------ Ion Engine > --- PROPULSION ------- Armored Wheel Armored Wheel > --- UTILITY ---------- Small Storage Unit Medium Storage Unit > --- WEAPON ----------- Maul Maul > --- INVENTORY -------- Light Ion Engine Medium Laser Medium Laser Light Assault Rifle Grenade Launcher [Rating: 11] Favorites ----------- Power Ion Engine Engine Ion Engine Propulsion Armored Wheel Leg Aluminum Leg Wheel Armored Wheel Utility Medium Storage Unit Device Sensor Array Storage Medium Storage Unit Weapon Maul Energy Gun Medium Laser Ballistic Gun Autogun Impact Weapon Maul Build | -11 -10 -10 -10 ------- Run | Yrd Mat Min Sub Slots Evolved . | . . . . Power . | . . . . Propulsion . | . . . . Utility . | . . . . Weapon . | . . . . Parts Attached 19 | 6 12 . 1 Power 4 | 1 3 . . Engine 4 | 1 3 . . Core . | . . . . Reactor . | . . . . Propulsion 5 | 2 3 . . Treads . | . . . . Leg 2 | 2 . . . Wheel 3 | . 3 . . Hover . | . . . . Flight . | . . . . Utility 3 | 1 1 . 1 Device 1 | . . . 1 Storage 2 | 1 1 . . Processor . | . . . . Hackware . | . . . . Protection . | . . . . Artifact . | . . . . Weapon 7 | 2 5 . . Energy Gun 2 | 2 . . . Energy Cannon . | . . . . Ballistic Gun 2 | . 2 . . Ballistic Cannon . | . . . . Launcher . | . . . . Special Weapon . | . . . . Impact Weapon 3 | . 3 . . Slashing Weapon . | . . . . Piercing Weapon . | . . . . Special Melee Weapon . | . . . . Unidentified Prototypes . | . . . . Parts Lost 7 | . 3 . 4 Power 2 | . 1 . 1 Propulsion 2 | . 1 . 1 Utility 1 | . . . 1 Weapon 2 | . 1 . 1 Highest Loss Streak 3 | . 3 . 3 To Critical Strikes . | . . . . Average Slot Usage (%) 82 | . 84 71 77 Engine 14 | . 14 14 14 Wheel 24 | . 27 14 13 Device 1 | . . . 7 Storage 14 | . 14 14 14 Ballistic Gun 10 | . 9 14 13 Impact Weapon 16 | . 17 14 14 Naked Turns . | . . . . Heaviest Build 22 | 14 21 21 22 Greatest Support 24 | 20 24 12 12 Greatest Overweight (x) 5 | . 1 1 5 Average Overweight (x) . | . . 1 1 Largest Inventory Capacity 10 | 8 10 10 10 Average Capacity 9 | 7 9 10 10 Most Carried 10 | 5 10 8 8 Average Carried 6 | 2 7 8 7 Final Capacity 10 | 8 10 10 10 Final Carried 8 | 2 8 8 7 Class Distribution -------------------- 100% | Mutant Dominant Class ---------------- Mutant | -10/Materials Mutant | -10/Mines Mutant | -10/Subcaves Resources | -11 -10 -10 -10 ----------- Run | Yrd Mat Min Sub Matter Collected 422 | 232 190 . . Remotely . | . . . . Salvage Created 672 | . 672 . . Parts 26 | . 26 . . Haulers Intercepted 2 | . 2 . . Recyclers Shooed . | . . . . Parts Field Recycled . | . . . . Retrieved Matter . | . . . . Parts Self-Destructed 1 | . . . 1 Prevented . | . . . . Kills | -11 -10 -10 -10 ------- Run | Yrd Mat Min Sub Combat Hostiles Destroyed 10 | . 10 . . Melee 9 | . 9 . . Classes Destroyed 8 | . 8 . . Worker 2 | . 2 . . Builder 1 | . 1 . . Hauler 2 | . 2 . . Recycler 2 | . 2 . . Operator 1 | . 1 . . Watcher 2 | . 2 . . Swarmer 3 | . 3 . . Grunt 7 | . 7 . . Best Kill Streak 8 | . 8 . . Combat Bots Only 5 | . 5 . . Max Kills in Single Turn 1 | . 1 . . Gunslinging . | . . . . Exploded . | . . . . Melee 1 | . 1 . . Uniques/NPCs Destroyed . | . . . . Combat | -11 -10 -10 -10 -------- Run | Yrd Mat Min Sub Hostile Shots Fired 49 | . 45 . 4 Missed 12 | . 12 . . Damage Taken 1060 | . 730 . 330 Core 255 | . 127 . 128 Absorbed by Shields . | . . . . Core Remaining (%) 100 | 100 . . . Volleys Fired 19 | . 19 . . Largest 1 | . 1 . . Hottest 23 | . 23 . . Shots Fired 19 | . 19 . . Gun 19 | . 19 . . Cannon . | . . . . Launcher . | . . . . Special . | . . . . Kinetic 19 | . 19 . . Thermal . | . . . . Explosive . | . . . . Electromagnetic . | . . . . Robot Hit Streak 2 | . 2 . . Robot Miss Streak 4 | . 4 . . Penetration Max . | . . . . Secondary Targets . | . . . . Shots Hit Robots 33 | . 33 . . Core Hits 10 | . 10 . . Critical Kills 1 | . 1 . . Critical Parts Destroyed 2 | . 2 . . Critical Strikes 3 | . 3 . . Smash 3 | . 3 . . Melee Attacks 58 | . 51 3 4 Impact 58 | . 51 3 4 Slashing . | . . . . Piercing . | . . . . Sneak Attacks 7 | . 7 . . Combat Hostiles . | . . . . Follow-up Attacks 1 | . 1 . . Damage Inflicted 1423 | . 1423 . . Guns 114 | . 114 . . Cannons . | . . . . Explosions . | . . . . Melee 1309 | . 1309 . . Ramming . | . . . . Kinetic 114 | . 114 . . Thermal . | . . . . Explosive . | . . . . Electromagnetic . | . . . . Impact 1309 | . 1309 . . Slashing . | . . . . Piercing . | . . . . Highest Corruption 12 | . 12 12 12 Average Corruption 11 | . 11 12 12 Corruption Purged . | . . . . Corruption Blocked . | . . . . Effects 12 | . . 5 7 Message Errors 2 | . . . 2 Matter Fused 4 | . . 2 2 Heat Flow Errors 2 | . . 1 1 Energy Discharges 1 | . . 1 . Data Loss (minor) 1 | . . . 1 Data Loss (major) 2 | . . 1 1 Overload Shots . | . . . . Overflow Damage 499 | . 499 . . Projectiles 18 | . 18 . . Explosions . | . . . . Melee 481 | . 481 . . Knockbacks 6 | . 6 . . Impact 5 | . 5 . . Kinetic . | . . . . Secondary 1 | . 1 . . Self-Inflicted Damage . | . . . . Shots . | . . . . Rammed . | . . . . Targets Rammed . | . . . . Kicked . | . . . . Crushed . | . . . . Highest Temperature 112 | . 8 91 112 Average Temperature 19 | . 3 53 72 Received Heat Transfer 213 | . 213 . . Siege Activations . | . . . . Robots Corrupted . | . . . . Combat Hostiles . | . . . . Parts Fried 13 | . 13 . . Impact Corruptions 18 | . 18 . . Robots Melted . | . . . . Combat Hostiles . | . . . . Parts Melted . | . . . . Heat Transferred . | . . . . Parts Sabotaged . | . . . . Parts Stolen . | . . . . Parts Stripped . | . . . . Power Chain Reactions . | . . . . Alert | -11 -10 -10 -10 ------- Run | Yrd Mat Min Sub Peak Influence 203 | . 203 . . Initial . | . . . . Average 77 | . 92 . . Maximum Alert Level 1 | . 1 . . Low Security (%) 96 | 100 95 100 . Level 1 3 | . 4 . . Level 2 . | . . . . Level 3 . | . . . . Level 4 . | . . . . Level 5 . | . . . . High Security . | . . . . Max Security . | . . . . Squads Dispatched 2 | . 2 . . Investigation 1 | . 1 . . Extermination . | . . . . Reinforcement 1 | . 1 . . Assault . | . . . . Garrison . | . . . . Intercept . | . . . . Searches Triggered . | . . . . Construction Impeded . | . . . . Haulers Reinforced . | . . . . Active Scanning Responses . | . . . . Cargo Convoy Interrupts . | . . . . Stealth | -11 -10 -10 -10 --------- Run | Yrd Mat Min Sub Distress Signals 3 | . 3 . . Communications Jammed . | . . . . Distress Signals . | . . . . Times Spotted 21 | . 19 . 2 Peak Tracking Total 7 | . 7 . 2 Tactical Retreats . | . . . . Traps | -11 -10 -10 -10 ------- Run | Yrd Mat Min Sub Traps Triggered 4 | . 1 . 3 Indirectly . | . . . . Trap Hack Attempts . | . . . . Triggered . | . . . . Disarmed . | . . . . Reprogrammed . | . . . . Reused . | . . . . Traps Extracted . | . . . . Installed . | . . . . Triggered . | . . . . Machines | -11 -10 -10 -10 ---------- Run | Yrd Mat Min Sub Machines Disabled . | . . . . Max in Single Turn . | . . . . Machines Repaired . | . . . . Machines Dismantled . | . . . . Machines Sabotaged . | . . . . Overloaded Fab Kills . | . . . . Hacking | -11 -10 -10 -10 --------- Run | Yrd Mat Min Sub Machines Accessed 3 | . 3 . . Terminals 3 | . 3 . . Fabricators . | . . . . Repair Stations . | . . . . Recycling Units . | . . . . Scanalyzers . | . . . . Garrison Access . | . . . . Total Hacks 7 | . 7 . . Successful 1 | . 1 . . Failed 6 | . 6 . . Catastrophic 2 | . 2 . . Database Lockouts . | . . . . Manual . | . . . . Terminals 7 | . 7 . . Fabricators . | . . . . Repair Stations . | . . . . Recycling Units . | . . . . Scanalyzers . | . . . . Garrison Access . | . . . . Terminal Hacks 1 | . 1 . . Record 1 | . 1 . . Fabricator Hacks . | . . . . Repair Station Hacks . | . . . . Recycling Unit Hacks . | . . . . Scanalyzer . | . . . . Garrison Access Hacks . | . . . . Unauthorized Hacks . | . . . . Terminals . | . . . . Fabricators . | . . . . Repair Stations . | . . . . Recycling Units . | . . . . Scanalyzers . | . . . . Garrison Access . | . . . . Data Cores Recovered . | . . . . Used . | . . . . Hacking Detections 3 | . 3 . . Full Trace Events 2 | . 2 . . Feedback Events . | . . . . Feedback Blocked . | . . . . Robot Schematics Acquired . | . . . . Robots Built . | . . . . Authchips . | . . . . Time . | . . . . Total Robot Build Rating . | . . . . Part Schematics Acquired . | . . . . Parts Built . | . . . . Authchips . | . . . . Time . | . . . . Total Part Build Rating . | . . . . Parts Repaired . | . . . . Time . | . . . . Parts Recycled . | . . . . Recycled Matter . | . . . . Retrieved Matter . | . . . . Retrieved Components . | . . . . Parts Scanalyzed . | . . . . Part Schematics Acquired . | . . . . Parts Damaged . | . . . . Bothacking | -11 -10 -10 -10 ------------ Run | Yrd Mat Min Sub Used RIF Installer . | . . . . Robots Hacked . | . . . . Non-combat . | . . . . Combat . | . . . . Robot Hacks Applied . | . . . . Relay Couplers Released . | . . . . Fabnet Peak Effective % . | . . . . Robots Rewired . | . . . . Allies Hacked . | . . . . Hacks Repelled . | . . . . Allies | -11 -10 -10 -10 -------- Run | Yrd Mat Min Sub Total Allies . | . . . . Largest Group . | . . . . Highest-Rated Group . | . . . . Highest-Rated Ally . | . . . . Total Orders . | . . . . Ally Attacks . | . . . . Total Damage . | . . . . Kills . | . . . . Allies Corrupted . | . . . . Allies Melted . | . . . . Intel | -11 -10 -10 -10 ------- Run | Yrd Mat Min Sub Robot Analysis Total . | . . . . Derelict Logs Recovered . | . . . . Drone Launches . | . . . . Drone Recoveries . | . . . . Exploration | -11 -10 -10 -10 ------------- Run | Yrd Mat Min Sub Turns Passed 1194 | 55 865 113 161 Spaces Moved 893 | 42 697 22 132 Core 15 | 12 . . 3 Treads . | . . . . Legs 35 | 30 5 . . Wheels 843 | . 692 22 129 Hover . | . . . . Flight . | . . . . Fastest Speed 50 | 50 90 105 105 Average Speed 94 | 100 90 105 109 Slowest Speed 300 | 120 120 105 300 Overloaded Moves . | . . . . Propulsion Burnouts . | . . . . Robots Hopped . | . . . . Cave-ins Triggered 1 | . 1 . . Exploration Rate (%) 28 | 4 85 9 14 Regions Visited 3 Branch Regions 2 Pre-discovered Areas . | . . . . Known Exits Taken . | . . . . Unknown Exits Taken 3 | 1 1 1 . Scrap Searched . | . . . . Spaces Dug 19 | . 15 . 4 Terrain Destroyed 19 | . 15 . 4 Melee 19 | . 15 . 4 Projectile . | . . . . AOE . | . . . . Terrain Rammed . | . . . . Walls Destroyed . | . . . . Machines Disabled . | . . . . Actions | -11 -10 -10 -10 --------- Run | Yrd Mat Min Sub Total 1110 | 54 814 105 137 Wait 97 | . 16 81 . Move 890 | 41 696 21 132 Hop . | . . . . Pick Up 21 | 7 14 . . Fast Attach 2 | 1 1 . . Attach 9 | 5 3 . 1 Detach . | . . . . Swap 8 | . 8 . . Drop 7 | . 7 . . Fire 19 | . 19 . . Melee 57 | . 50 3 4 Ram . | . . . . Kick . | . . . . Crush . | . . . . Escape Stasis . | . . . . Rewire . | . . . . Trap . | . . . . Miscellaneous . | . . . . Route ------- -11/Scrapyard -10/Materials (discovered 3 exits: [*Mat x2] / [*Min]) -10/Mines -10/Subcaves History --------- Turn | Location | Event 24 | -11/Scrapyard | Discovered new exit (range 16) 56 | -11/Scrapyard | Entered Materials 307 | -10/Materials | Build established: Mutant 348 | -10/Materials | Discovered new exit (range 15) 439 | -10/Materials | Discovered new exit (range 16) 725 | -10/Materials | Discovered new exit (range 15) 902 | -10/Materials | Crushed by falling debris 902 | -10/Materials | System corruption reached 10% 907 | -10/Materials | Core integrity fell below 50% 921 | -10/Materials | Entered Mines 933 | -10/Mines | Lost 3 parts (1p1n1w) 1029 | -10/Mines | Discovered new exit (range 3) 1034 | -10/Mines | Entered Subcaves 1086 | -10/Subcaves | A swath of the cavern ceiling suddenly collapsed 1192 | -10/Subcaves | Core integrity fell below 20% 1195 | -10/Subcaves | Destroyed by DN-4HH(R) with Subdweller Shrapnel Launcher Last Messages --------------- 01091_ System corrupted: Matter fused (-7). 01105_ Triggered Shrapnel Trap. 01105_ An expanding cloud of shrapnel blasts out in all directions. 01108_ <,YV%V#VRK: 01134_ Sensor Array destroyed. 01137_ System corrupted: Component data lost. 01170_ System corrupted: Substantial component data lost. 01184_ Triggered Piercing Trap. 01184_ Spikes shoot up from the floor. 01184_ Critical hit (Impale). 01184_ Arm. Wheel destroyed. 01184_ Critical hit (Impale). 01184_ Autogun destroyed. 01186_ BKJHXZNFJ5DTS4V7DXBD0HZCWHJLZD=7 01191_ Ion Engine destroyed. Map ----- +----------------------------------------------------+ | ????????????????????????# ???????? | | ????????????????????????# ## ####?????????? | | ????????????????????????## #### #????????????? | | ???????????????????????### ## #????????????? | | ??????????????????#???###### #???????????? | | ??????????????????# ###""""### # #????????? | | ???????????????????#""#""# ### #? #????????? | | ???????????????????# #"#"# #? #??? #????????? | | ???????????????????###"#"# # #?? ????? ????????? | | ???????????????????#""""### ##?? ???????????????? | | ???????????????????#####"#" #???? ??????????????? | | ???????????????????##"""## ##?????##?????????????? | | ??????????????????##"###" #?????????????????????? | | ?????????#######?## ;#" #?????????????????????? | | ????????? # # ### " #?????????????????????? | | ????????## ##????????????????????? | | ???????## ## #????????????????????? | | # ## ## # ## #????????????????????? | | #?###;; ;" #????????????????????? | | ##???# ##????????????????????? | | ???## # #"###?##; "###?????????????????????? | | ????#????### "#??#; ;#######??????????????????? | | ???????????# ##### ; ##?????????????????? | | ???????????## ## #?????????????????? | | ??????????### ^ ##????????????????? | | ???????#### ^ R@ ##???????????????? | | ??????## R #; ;#???????????????? | | ??????# ### #; ;#???????????????? | | ??????# #### ### #; ;#???????????????? | | ??????####??## #???????????????? | | ?????????????## ;#???????????????? | | ??????????????# #### ;;;;#???????????????? | | ??????????????## ##?#;# #####???????????????? | | ???????????????######??#######???????????????????? | | ?????????????????????????????????????????????????? | | ?????????????????????????????????????????????????? | | ?????????????????????????????????????????????????? | | ?????????????????????????????????????????????????? | | ?????????????????????????????????????????????????? | | ?????????????????????????????????????????????????? | | ?????????????????????????????????????????????????? | | ?????????????????????????????????????????????????? | | ?????????????????????????????????????????????????? | | ?????????????????????????????????????????????????? | | ?????????????????????????????????????????????????? | | ?????????????????????????????????????????????????? | | ?????????????????????????????????????????????????? | | ?????????????????????????????????????????????????? | | ?????????????????????????????????????????????????? | | ?????????????????????????????????????????????????? | +----------------------------------------------------+ Best States ------------- Heat Dissipation 25 Energy Generation 10 Energy Capacity 250 Matter Stores 300 Matter Capacity 300 Sight Range 16 Robot Scan Range 14 Terrain Scan Density 10 Evasion (%) 50 Item Schematics ----------------- None Robot Schematics ------------------ None Fabricated ------------ Nothing Alien Tech Used ----------------- None Achievements -------------- None Challenges ------------ None Game ------ Seed TacticalCorruptionField Manual? 0 Play Time 00:16:27 Cumulative 42.5 hours Start 2024.03.23 @ 20:49:22 End 2024.03.23 @ 21:04:52 Sessions 1 Manual Loads 0 Difficulty Rogue Special Mode None Game No. 32 Rogue 30 Adventurer 0 Explorer 2 Win Type - Total 0 Types 0/0/0/0/0/0/0/0/0 Lore% 15 Gallery% 26 Achievement% 19 Wizard Run 0 Options --------- Layout 1 ASCII 0 Keyboard 0 Movement Mouse Keybinds 0 Fullscreen 2 Font 48/Tamsyn Map View 50x35 Zoom Use 0% Tactical HUD 1 Map Filters NONE Filters NONE Steam 1 RUN: 0e2bee58-ced7-44a5-8db5-79e8b2b6f4cb